bitfinex-derivatives/quotes_SOLF0:USTF0_20250603
["timestamp","ask_amount","ask_price","bid_price","bid_amount"]
[1748987277588,6.4162,155.75,155.74,0.04891441]
[1748987277788,10.94462736,155.75,155.74,0.04891441]
[1748987277990,10.94520877,155.75,155.74,0.04891441]
[1748987278297,6.4162,155.75,155.74,0.04891441]
[1748987278492,10.94334494,155.75,155.74,0.04891441]
[1748987278793,10.94326908,155.75,155.74,0.04891441]
[1748987278986,6.4162,155.75,155.74,0.04891441]
[1748987279188,10.94432179,155.75,155.74,0.04891441]
[1748987279398,6.4162,155.75,155.74,0.04891441]
[1748987280496,10.94393358,155.75,155.74,0.04891441]
[1748987280790,6.4178,155.72,155.69,6.4184]
[1748987280992,39.8804,155.77,155.69,6.4184]
[1748987281195,6.4183,155.7,155.68,6.4189]
[1748987281384,4.53104296,155.69,155.68,6.4189]
[1748987281584,6.4183,155.7,155.67,40.00191753]
[1748987281585,6.45909495,155.7,155.67,40.00191753]
[1748987281790,4.52936681,155.69,155.67,40.00191753]
[1748987281984,6.45909495,155.7,155.67,40.00191753]
[1748987282189,6.4187,155.69,155.67,40.00191753]
[1748987282389,0.04079495,155.7,155.67,40.00191753]
[1748987282596,4.51793741,155.69,155.67,40.00191753]
[1748987282891,0.04079495,155.7,155.67,40.00191753]
[1748987283085,4.51816151,155.69,155.67,40.00191753]
[1748987283285,17.71919495,155.7,155.67,40.00191753]
[1748987283596,11.30079495,155.7,155.67,40.00191753]
[1748987283793,4.51758707,155.69,155.67,40.00191753]
[1748987283992,4.51758707,155.68,155.67,40.00191753]
[1748987284190,11.30079495,155.7,155.67,40.00191753]
[1748987284390,17.71919495,155.7,155.67,40.00191753]
[1748987284695,4.5128049,155.69,155.67,40.00191753]
[1748987284891,4.5128049,155.68,155.67,40.00191753]
[1748987285092,11.30079495,155.7,155.67,40.00191753]
[1748987285294,17.71919495,155.7,155.67,40.00191753]
[1748987285601,4.51290919,155.69,155.67,33.58271753]
[1748987285894,4.51240872,155.68,155.67,33.58271753]
[1748987286209,6.4189,155.69,155.67,0.04271753]
[1748987287694,6.4191,155.68,155.67,0.04271753]
[1748987288699,6.4202,155.66,155.62,33.54]
[1748987289492,6.46135708,155.66,155.62,33.58774125]
[1748987290095,6.46135708,155.66,155.62,40.00904125]
[1748987290499,6.4203,155.65,155.63,6.4211]
[1748987290693,0.04115708,155.66,155.63,6.4211]
[1748987291194,6.46135708,155.66,155.63,6.4211]
[1748987291499,0.04115708,155.66,155.63,6.4211]
[1748987292493,6.4205,155.65,155.63,6.4211]
[1748987294701,0.04115708,155.66,155.62,33.58774125]
[1748987294911,33.56,155.65,155.55,33.56]
[1748987295201,6.4221,155.61,155.55,33.56]
[1748987295395,33.56,155.65,155.55,33.56]
[1748987295806,33.56,155.65,155.57,6.4233]
[1748987295807,6.4225,155.6,155.57,6.4233]
[1748987296099,6.4664433,155.6,155.57,6.46906584]
[1748987296802,6.4229,155.59,155.57,0.04576584]
[1748987297104,0.0439433,155.6,155.57,0.04576584]
[1748987297303,6.4232,155.58,155.57,0.04576584]
[1748987297503,6.5638433,155.6,155.52,33.5]
[1748987297795,6.5638433,155.6,155.44,567.558]
[1748987297796,6.5199,155.6,155.44,554.7]
[1748987298006,6.5199,155.6,155.48,6.4271]
[1748987298390,6.4263,155.51,155.48,6.4271]
[1748987298594,6.46894285,155.51,155.48,6.44920888]
[1748987300199,0.04264285,155.51,155.49,6.4269]
[1748987300697,0.04264285,155.51,155.48,0.02210888]
[1748987300904,0.04264285,155.51,155.48,6.44920888]
[1748987301199,0.04264285,155.51,155.48,0.02210888]
[1748987301704,6.4268,155.5,155.48,0.02210888]
[1748987302299,6.46894285,155.51,155.48,0.02210888]
[1748987303204,0.04264285,155.51,155.48,6.44920888]
[1748987303596,0.04264285,155.51,155.48,0.02210888]
[1748987305198,0.04264285,155.51,155.49,6.4269]
[1748987307491,0.04264285,155.51,155.5,6.4265]
[1748987307693,0.04264285,155.51,155.48,0.02210888]
[1748987308101,0.04264285,155.51,155.49,6.4267]
[1748987308296,0.04264285,155.51,155.48,0.02210888]
[1748987308797,6.46904285,155.51,155.48,0.02210888]
[1748987310297,6.46904285,155.51,155.48,6.44940888]
[1748987311197,6.46904285,155.51,155.22,15.42957415]
[1748987311198,19.24,155.48,155.22,15.42957415]
[1748987311400,19.24,155.46,155.24,2.8949]
[1748987311702,2.1959,155.45,155.24,2.8949]
[1748987312104,0.04843756,155.36,155.24,2.8949]
[1748987312402,0.04321676,155.32,155.24,2.8949]
[1748987312603,0.04241368,155.3,155.24,2.8949]
[1748987312798,5.3,155.31,155.3,6.4346]
[1748987313003,5.3,155.31,155.24,2.8949]
[1748987313202,11.7345,155.31,155.26,6.4364]
[1748987313507,5.3,155.31,155.24,2.8949]
[1748987314007,6.4351,155.3,155.25,6.4366]
[1748987314207,6.4351,155.3,155.24,2.8949]
[1748987314405,0.04235368,155.29,155.22,2.55397415]
[1748987316304,0.04235368,155.29,155.28,6.4356]
[1748987317211,5.3,155.31,155.3,6.4348]
[1748987317503,5.3,155.31,155.25,33.56]
[1748987317504,33.56,155.34,155.25,33.56]
[1748987317710,44.2783,155.36,155.25,33.56]
[1748987317905,44.2783,155.36,155.32,6.4337]
[1748987318411,44.32543008,155.36,155.32,6.47709615]
[1748987318906,33.60713008,155.36,155.32,0.04339615]
[1748987319510,33.60713008,155.36,155.33,6.4332]
[1748987319710,0.04713008,155.36,155.33,6.4332]
[1748987319911,0.04713008,155.36,155.34,6.433]
[1748987320509,0.04713008,155.36,155.35,6.4327]
[1748987321716,45.3499,155.42,155.37,6.4315]
[1748987322119,45.3499,155.42,155.33,33.56]
[1748987322305,38.92,155.42,155.33,33.56]
[1748987322511,5.36,155.42,155.34,2.1704]
[1748987322820,0.04449066,155.4,155.39,6.4311]
[1748987331525,0.04449066,155.4,155.37,33.56]
[1748987331725,0.04449066,155.4,155.36,0.04795812]
[1748987332122,0.04449066,155.4,155.36,6.47995812]
[1748987332429,0.04449066,155.4,155.36,0.04795812]
[1748987333726,6.4313,155.39,155.36,0.04795812]
[1748987334430,6.4315,155.38,155.36,0.04795812]
[1748987335330,0.04449066,155.4,155.36,0.04795812]
[1748987336331,6.4314,155.39,155.36,0.04795812]
[1748987336730,0.04449066,155.4,155.36,0.04795812]
[1748987337333,6.4315,155.38,155.36,0.04795812]
[1748987339830,6.4319,155.37,155.36,0.04795812]
[1748987345030,4.2815,155.39,155.36,0.04795812]
[1748987345233,39.82681175,155.52,155.36,0.04795812]
[1748987345436,2.0748,155.45,155.35,555.82]
[1748987346140,0.04915153,155.42,155.38,0.0443533]
[1748987346534,0.04915153,155.42,155.4,6.4306]
[1748987346734,0.04915153,155.42,155.38,0.0443533]
[1748987348137,0.04915153,155.42,155.41,6.4302]
[1748987352335,0.04915153,155.42,155.38,0.0443533]
[1748987352336,0.04915153,155.42,155.39,6.431]
[1748987352537,0.04915153,155.42,155.38,0.0443533]
[1748987353347,0.04915153,155.42,155.39,6.4307]
[1748987356654,0.04915153,155.42,155.38,0.0443533]
[1748987357153,6.4303,155.41,155.38,0.0443533]
[1748987357550,6.47915153,155.42,155.38,6.4755533]
[1748987358549,6.4303,155.41,155.38,6.4755533]
[1748987358752,0.04915153,155.42,155.38,0.0443533]
[1748987359149,6.4307,155.4,155.38,0.0443533]
[1748987360057,35.56,155.39,155.38,0.0443533]
[1748987360356,35.56,155.39,155.3,2.1521]
[1748987360550,37.6009,155.39,155.3,2.1521]
[1748987360954,6.4319,155.37,155.34,6.4329]
[1748987361151,6.4319,155.37,155.34,0.04423376]
[1748987361459,6.47332669,155.37,155.34,0.04423376]
[1748987361850,6.4323,155.36,155.34,0.04423376]
[1748987362159,0.04142669,155.37,155.34,0.04423376]
[1748987363058,11.21215477,155.36,155.34,0.04423376]
[1748987363246,6.4326,155.36,155.34,0.04423376]
[1748987363653,6.4327,155.35,155.34,0.04423376]
[1748987363848,11.21089688,155.35,155.34,0.04423376]
[1748987364255,40.33819688,155.35,155.29,6.435]
[1748987364448,35.56,155.35,155.27,7.98972081]
[1748987364852,6.4341,155.32,155.28,6.4355]
[1748987365055,35.56,155.35,155.26,7.98972081]
[1748987365262,0.04461562,155.32,155.29,0.04142428]
[1748987365453,35.56,155.31,155.29,0.04142428]
[1748987365653,6.4351,155.3,155.29,0.04142428]
[1748987366053,11.21453663,155.3,155.29,0.04142428]
[1748987366255,11.21508169,155.3,155.29,0.04142428]
[1748987366554,6.4351,155.3,155.29,0.04142428]
[1748987367061,11.21491189,155.3,155.29,0.04142428]
[1748987367356,6.4351,155.3,155.29,0.04142428]
[1748987367756,6.4352,155.29,155.23,7.98972081]
[1748987368061,35.56,155.31,155.23,7.98972081]
[1748987368253,35.56,155.31,155.26,6.4361]
[1748987368454,6.435,155.3,155.26,6.4361]
[1748987368654,4.75876832,155.29,155.26,6.4361]
[1748987368853,0.04750114,155.29,155.26,6.4361]
[1748987369059,9.51812322,155.28,155.26,6.4361]
[1748987369257,4.75904184,155.28,155.27,6.436]
[1748987369465,4.184e-05,155.28,155.27,6.436]
[1748987369760,10.588,155.38,155.32,6.4336]
[1748987369955,10.588,155.38,155.27,4.3557]
[1748987370760,0.04930193,155.34,155.31,0.04644482]
[1748987372160,0.04930193,155.34,155.33,6.4333]
[1748987375258,0.04930193,155.34,155.31,0.04644482]
[1748987375766,6.4337,155.33,155.31,0.04644482]
[1748987376057,0.04930193,155.34,155.31,0.04644482]
[1748987376465,6.4338,155.33,155.31,0.04644482]
[1748987376665,0.04930193,155.34,155.31,0.04644482]
[1748987376862,6.48280193,155.34,155.31,6.48084482]
[1748987377964,6.4336,155.33,155.31,0.04644482]
[1748987378359,6.434,155.33,155.31,0.04644482]
[1748987378759,0.04930193,155.34,155.31,0.04644482]
[1748987380162,6.434,155.32,155.31,0.04644482]
[1748987380870,6.4348,155.3,155.27,6.4358]
[1748987381169,12.21,155.37,155.28,6.4356]
[1748987381358,6.4346,155.31,155.28,6.4356]
[1748987381765,6.48121691,155.31,155.28,6.4356]
[1748987381956,4.67231145,155.3,155.28,6.4356]
[1748987382161,4.67251921,155.29,155.28,6.4356]
[1748987382364,0.04661691,155.31,155.27,6.4358]
[1748987382565,0.04295398,155.31,155.22,2.55397415]
[1748987382765,4.64874111,155.3,155.22,2.55397415]
[1748987383066,0.04790911,155.28,155.27,6.436]
[1748987383268,4.69911746,155.28,155.27,6.436]
[1748987383470,0.04790911,155.28,155.27,6.436]
[1748987383768,4.69715187,155.28,155.27,6.436]
[1748987383968,0.04790911,155.28,155.27,6.436]
[1748987384163,4.69746791,155.28,155.27,6.436]
[1748987384465,0.04790911,155.28,155.27,6.436]
[1748987384673,4.69743002,155.28,155.27,6.436]
[1748987384866,0.04790911,155.28,155.27,6.436]
[1748987385971,4.69803506,155.28,155.27,6.436]
[1748987386167,0.04790911,155.28,155.27,6.436]
[1748987386564,12.21,155.37,155.32,6.4337]
[1748987386766,4.65049991,155.36,155.25,7.98972081]
[1748987386974,4.65049991,155.35,155.25,7.98972081]
[1748987387161,4.65066935,155.34,155.26,1.8695]
[1748987387471,4.65106606,155.33,155.27,2.0949]
[1748987387669,12.21,155.37,155.28,0.04893089]
[1748987387873,12.21,155.37,155.36,6.4323]
[1748987395269,0.04416189,155.38,155.37,6.4319]
[1748987395572,14.96,155.44,155.35,0.04496959]
[1748987396375,6.4296,155.43,155.39,6.4308]
[1748987396572,0.04433364,155.43,155.39,6.47761604]
[1748987397079,6.43,155.42,155.39,6.47761604]
[1748987397274,0.04433364,155.43,155.39,0.04681604]
[1748987397468,6.47393364,155.43,155.39,0.04681604]
[1748987397967,0.04433364,155.43,155.39,0.04681604]
[1748987398172,14.57,155.42,155.39,0.04681604]
[1748987398576,14.57,155.42,155.39,6.47761604]
[1748987399175,14.57,155.42,155.39,0.04681604]
[1748987399571,6.4306,155.4,155.39,0.04681604]
[1748987399773,11.0558294,155.4,155.39,0.04681604]
[1748987400072,15.67993391,155.4,155.39,0.04681604]
[1748987400273,11.0558294,155.4,155.39,0.04681604]
[1748987401183,15.68265613,155.4,155.39,0.04681604]
[1748987401484,11.0558294,155.4,155.39,0.04681604]
[1748987401667,15.68300262,155.4,155.39,0.04681604]
[1748987401868,11.0558294,155.4,155.39,0.04681604]
[1748987404583,15.68254002,155.4,155.39,0.04681604]
[1748987405076,11.0558294,155.4,155.39,0.04681604]
[1748987405276,4.6252294,155.4,155.39,0.04681604]
[1748987406176,11.0558294,155.4,155.39,0.04681604]
[1748987406378,4.6252294,155.4,155.31,10.19722081]
[1748987406577,6.4315,155.38,155.31,10.19722081]
[1748987406979,4.6252294,155.4,155.31,10.19722081]
[1748987407171,6.4314,155.39,155.35,6.4325]
[1748987407376,0.04435739,155.39,155.35,6.47795831]
[1748987408172,6.47555739,155.39,155.35,6.47795831]
[1748987408379,4.62085926,155.38,155.35,6.47795831]
[1748987408577,6.47555739,155.39,155.35,6.47795831]
[1748987408771,6.4315,155.38,155.35,6.47795831]
[1748987408985,4.62084486,155.37,155.35,6.47795831]
[1748987409183,6.4315,155.38,155.35,6.47795831]
[1748987409885,4.62098604,155.37,155.35,6.47795831]
[1748987410077,6.4315,155.38,155.35,6.47795831]
[1748987411575,4.62071188,155.37,155.35,6.47795831]
[1748987411777,4.62068405,155.36,155.35,6.47795831]
[1748987412086,4.62066397,155.36,155.35,6.47795831]
[1748987412381,6.4315,155.38,155.35,6.47795831]
[1748987412881,0.04435739,155.39,155.35,0.04545831]
[1748987413277,4.60927937,155.38,155.35,0.04545831]
[1748987413480,4.60927952,155.37,155.35,0.04545831]
[1748987413684,4.60930562,155.36,155.35,0.04545831]
[1748987413988,0.04435739,155.39,155.35,0.04545831]
[1748987414282,6.4323,155.36,155.35,0.04545831]
[1748987416786,11.0444765,155.36,155.35,0.04545831]
[1748987416992,6.4335,155.34,155.31,6.4342]
[1748987417183,4.6122274,155.33,155.31,6.4342]
[1748987417495,6.4335,155.34,155.31,6.4342]
[1748987417881,6.4335,155.34,155.31,6.47926454]
[1748987418090,6.47802644,155.34,155.31,6.47926454]
[1748987418484,6.4336,155.33,155.31,0.04506454]
[1748987418686,0.04452644,155.34,155.31,0.04506454]
[1748987418993,6.434,155.32,155.31,0.04506454]
[1748987419585,6.4337,155.33,155.31,0.04506454]
[1748987419887,4.60149095,155.32,155.31,0.04506454]
[1748987420090,0.04452644,155.34,155.31,0.04506454]
[1748987420486,11.03635955,155.33,155.31,0.04506454]
[1748987420879,4.6069827,155.32,155.31,6.47946454]
[1748987421086,4.60700727,155.32,155.31,0.04506454]
[1748987421284,0.04452644,155.34,155.31,0.04506454]
[1748987421783,0.04452644,155.34,155.32,6.4337]
[1748987421994,4.60826688,155.33,155.32,6.4337]
[1748987422192,4.60840506,155.33,155.31,0.04506454]
[1748987422385,0.04452644,155.34,155.31,0.04506454]
[1748987422586,0.04452644,155.34,155.32,6.4337]
[1748987422785,4.59847801,155.33,155.32,6.4337]
[1748987422990,4.58406376,155.33,155.32,6.4337]
[1748987423190,0.04452644,155.34,155.32,6.4337]
[1748987423492,0.04452644,155.34,155.31,0.04506454]
[1748987424893,6.47782644,155.34,155.31,0.04506454]
[1748987425196,4.58342083,155.33,155.31,0.04506454]
[1748987425394,6.47782644,155.34,155.31,0.04506454]
[1748987425590,0.04452644,155.34,155.31,0.04506454]
[1748987425896,4.58184455,155.33,155.31,0.04506454]
[1748987426100,6.47782644,155.34,155.31,0.04506454]
[1748987426396,4.58390695,155.33,155.31,0.04506454]
[1748987426597,4.58421638,155.32,155.31,6.47946454]
[1748987426796,4.58428192,155.32,155.31,0.04506454]
[1748987426996,6.47782644,155.34,155.31,0.04506454]
[1748987427199,4.5844992,155.33,155.31,0.04506454]
[1748987427500,6.47782644,155.34,155.31,0.04506454]
[1748987428596,11.01681327,155.33,155.31,0.04506454]
[1748987428795,0.04452644,155.34,155.31,0.04506454]
[1748987429493,4.5824162,155.33,155.31,0.04506454]
[1748987429688,0.04452644,155.34,155.31,0.04506454]
[1748987429892,4.58232181,155.33,155.31,0.04506454]
[1748987430099,11.01632181,155.32,155.31,0.04506454]
[1748987430298,6.434,155.32,155.31,0.04506454]
[1748987431898,11.01009936,155.32,155.31,0.04506454]
[1748987432203,6.434,155.32,155.31,0.04506454]
[1748987432403,11.0006511,155.32,155.31,0.04506454]
[1748987432696,11.00064674,155.32,155.31,0.04506454]
[1748987432897,11.00100152,155.32,155.31,0.04506454]
[1748987433100,6.434,155.32,155.31,0.04506454]
[1748987433295,11.00088236,155.32,155.31,0.04506454]
[1748987433603,6.4337,155.33,155.31,0.04506454]
[1748987434104,6.47792644,155.34,155.31,6.47916454]
[1748987434602,0.04452644,155.34,155.31,11.60264458]
[1748987434805,4.55375025,155.33,155.31,11.60264458]
[1748987435101,0.04452644,155.34,155.33,6.4335]
[1748987436009,4.59922576,155.34,155.33,6.4335]
[1748987436303,0.04452644,155.34,155.33,6.4335]
[1748987437897,4.61348188,155.34,155.33,6.4335]
[1748987438096,4.61343653,155.34,155.33,6.4335]
[1748987438301,0.04452644,155.34,155.33,6.4335]
[1748987438898,4.61343736,155.34,155.33,6.4335]
[1748987439103,0.04452644,155.34,155.33,6.4335]
[1748987442510,4.61545426,155.34,155.33,6.4335]
[1748987442810,4.62010918,155.34,155.33,6.4335]
[1748987443002,0.04452644,155.34,155.33,17.99108004]
[1748987443800,4.62016674,155.34,155.31,0.04506454]
[1748987444014,4.5756403,155.33,155.31,11.60264458]
[1748987444211,0.04452644,155.34,155.31,11.60264458]
[1748987444401,4.57255032,155.33,155.31,18.03674458]
[1748987444603,0.04452644,155.34,155.31,18.03674458]
[1748987444806,4.57279014,155.32,155.31,18.03674458]
[1748987445107,0.04452644,155.34,155.31,18.03674458]
[1748987445310,4.57317639,155.33,155.31,18.03674458]
[1748987445500,4.57316572,155.32,155.31,11.60264458]
[1748987445703,4.5723672,155.32,155.31,11.60264458]
[1748987445911,4.57232897,155.32,155.31,11.60264458]
[1748987446112,4.57238188,155.32,155.31,0.04506454]
[1748987446411,0.04452644,155.34,155.31,0.04506454]
[1748987447006,4.57107874,155.33,155.31,0.04506454]
[1748987447210,0.04452644,155.34,155.31,0.04506454]
[1748987447612,6.4339,155.32,155.31,0.04506454]
[1748987447909,11.03243152,155.32,155.31,0.04506454]
[1748987448213,11.02767679,155.32,155.31,0.04506454]
[1748987448408,6.4354,155.29,155.24,7.98972081]
[1748987448611,6.4354,155.29,155.25,11.55758004]
[1748987448910,6.435,155.3,155.27,6.436]
[1748987449111,4.59128907,155.29,155.27,6.436]
[1748987449413,4.59128907,155.29,155.25,11.55758004]
[1748987449414,6.4352,155.29,155.26,6.4362]
[1748987449713,6.4352,155.29,155.25,11.55758004]
[1748987449918,4.5866848,155.28,155.25,11.55758004]
[1748987450116,4.58614629,155.27,155.25,11.55758004]
[1748987450413,0.04193597,155.3,155.24,11.55758004]
[1748987450609,0.04282071,155.29,155.25,6.4367]
[1748987450802,0.04282071,155.29,155.24,11.55758004]
[1748987451007,4.58754217,155.28,155.24,11.55758004]
[1748987451212,0.04282071,155.29,155.24,11.55758004]
[1748987451404,4.58745748,155.28,155.24,11.55758004]
[1748987451606,0.04282071,155.29,155.24,11.55758004]
[1748987452106,6.4366,155.26,155.24,11.55758004]
[1748987452412,0.04282071,155.29,155.24,11.55758004]
[1748987452614,0.04282071,155.29,155.23,6.4374]
[1748987453010,6.4368,155.26,155.23,6.4374]
[1748987453211,0.04282071,155.29,155.23,6.4374]
[1748987453609,11.60040075,155.29,155.22,2.55397415]
[1748987453815,0.04282071,155.29,155.22,2.55397415]
[1748987454017,6.4376,155.24,155.22,2.55397415]
[1748987455315,6.4376,155.24,155.22,8.99207415]
[1748987455622,6.47924947,155.25,155.22,2.55397415]
[1748987455916,6.47924947,155.25,155.22,14.11155419]
[1748987455917,0.04234947,155.25,155.22,14.11155419]
[1748987456304,0.04234947,155.25,155.24,6.4372]
[1748987456512,4.58776121,155.25,155.24,6.4372]
[1748987456815,0.04234947,155.25,155.24,6.4372]
[1748987457009,0.04234947,155.25,155.24,17.99478004]
[1748987457207,2.1368,155.31,155.24,11.55758004]
[1748987457411,4.54484875,155.3,155.24,11.55758004]
[1748987457710,16.06258004,155.33,155.24,11.55758004]
[1748987458222,0.04828535,155.3,155.27,0.04832619]
[1748987458914,4.53288614,155.29,155.27,0.04832619]
[1748987459116,0.04828535,155.3,155.29,6.4352]
[1748987459815,4.58315568,155.3,155.29,6.4352]
[1748987460116,4.58315886,155.3,155.29,6.4352]
[1748987460314,4.58310364,155.3,155.29,6.4352]
[1748987460508,0.04828535,155.3,155.29,6.4352]
[1748987461307,4.58340995,155.3,155.29,6.4352]
[1748987461708,4.58340186,155.3,155.29,6.4352]
[1748987461911,0.04828535,155.3,155.29,6.4352]
[1748987462320,4.58304128,155.3,155.29,6.4352]
[1748987462812,4.58304128,155.3,155.27,0.04832619]
[1748987462813,0.04828535,155.3,155.27,0.04832619]
[1748987463121,4.57287794,155.29,155.27,0.04832619]
[1748987463311,0.04828535,155.3,155.27,0.04832619]
[1748987463512,4.57259251,155.29,155.27,0.04832619]
[1748987463714,0.04828535,155.3,155.27,0.04832619]
[1748987464013,6.48318535,155.3,155.27,6.48402619]
[1748987464919,11.00913246,155.29,155.27,0.04832619]
[1748987465120,6.4352,155.29,155.27,0.04832619]
[1748987465321,6.48318535,155.3,155.27,0.04832619]
[1748987465524,4.57323074,155.29,155.27,0.04832619]
[1748987465723,4.57331441,155.28,155.27,0.04832619]
[1748987465918,4.57359416,155.28,155.27,0.04832619]
[1748987466226,0.04828535,155.3,155.27,0.04832619]
[1748987466429,4.5735935,155.29,155.27,0.04832619]
[1748987466722,6.48328535,155.3,155.27,6.48432619]
[1748987467118,6.48328535,155.3,155.27,0.04832619]
[1748987467324,4.57362092,155.29,155.27,0.04832619]
[1748987467529,6.48328535,155.3,155.27,0.04832619]
[1748987467720,4.57362899,155.29,155.27,0.04832619]
[1748987467927,4.57363101,155.28,155.27,0.04832619]
[1748987468118,4.57363101,155.28,155.27,6.48432619]
[1748987468318,6.48328535,155.3,155.27,6.48432619]
[1748987468515,4.5640727,155.29,155.27,6.48432619]
[1748987468720,4.5641318,155.28,155.27,6.48432619]
[1748987468923,0.04828535,155.3,155.27,6.48432619]
[1748987469414,4.56433757,155.29,155.27,6.48432619]
[1748987469618,0.04828535,155.3,155.27,6.48432619]
[1748987470013,6.48308535,155.3,155.27,6.48432619]
[1748987470218,4.56437125,155.29,155.28,6.4356]
[1748987470419,0.04828535,155.3,155.28,6.4356]
[1748987471017,4.5651884,155.29,155.28,6.4356]
[1748987471217,4.56518755,155.29,155.28,6.4356]
[1748987471418,0.04828535,155.3,155.28,6.4356]
[1748987471920,4.56128594,155.29,155.28,6.4356]
[1748987472126,4.56100338,155.29,155.28,6.4356]
[1748987472325,4.56114216,155.29,155.28,6.4356]
[1748987472525,4.56105118,155.29,155.28,6.4356]
[1748987472723,0.04828535,155.3,155.28,6.4356]
[1748987473326,0.04828535,155.3,155.29,6.4352]
[1748987473828,4.60926301,155.3,155.29,6.4352]
[1748987474230,0.04828535,155.3,155.29,6.4352]
[1748987474618,4.60075805,155.3,155.29,6.4352]
[1748987475024,4.60061627,155.3,155.29,6.4352]
[1748987475227,0.04828535,155.3,155.28,6.4352]
[1748987475421,4.55232344,155.29,155.28,6.4352]
[1748987475829,0.04828535,155.3,155.28,6.4352]
[1748987476030,6.48318535,155.3,155.27,6.48422619]
[1748987476236,0.04828535,155.3,155.27,0.04832619]
[1748987476426,4.55266252,155.29,155.27,0.04832619]
[1748987476627,6.4354,155.29,155.27,0.04832619]
[1748987477023,4.55247683,155.28,155.27,0.04832619]
[1748987477228,6.4354,155.29,155.27,0.04832619]
[1748987478434,4.55174603,155.28,155.27,0.04832619]
[1748987478636,6.4354,155.29,155.27,0.04832619]
[1748987479430,10.98738798,155.28,155.27,0.04832619]
[1748987479630,6.4356,155.28,155.27,0.04832619]
[1748987479931,6.4356,155.28,155.22,14.11155419]
[1748987479932,6.4377,155.23,155.22,2.55397415]
[1748987480125,11.55758004,155.28,155.22,2.55397415]
[1748987480330,11.28,155.25,155.22,2.55397415]
[1748987480526,10.98733397,155.24,155.22,2.55397415]
[1748987480727,6.4375,155.24,155.22,2.55397415]
[1748987481131,4.54941358,155.23,155.22,8.99207415]
[1748987481326,17.76505734,155.25,155.22,8.99207415]
[1748987482236,4.52127264,155.24,155.22,8.99207415]
[1748987482439,17.76505734,155.25,155.22,8.99207415]
[1748987483528,4.51738846,155.24,155.22,8.99207415]
[1748987483729,4.51730114,155.23,155.22,2.55397415]
[1748987483936,11.32805734,155.25,155.22,2.55397415]
[1748987484327,17.76525734,155.25,155.22,2.55397415]
[1748987485039,4.5165688,155.24,155.22,2.55397415]
[1748987485239,11.32805734,155.25,155.22,2.55397415]
[1748987485441,6.4376,155.23,155.22,2.55397415]
[1748987485735,10.95335019,155.23,155.22,2.55397415]
[1748987485938,6.4376,155.23,155.22,2.55397415]
[1748987486141,10.95334623,155.23,155.22,2.55397415]
[1748987486342,6.4376,155.23,155.22,2.55397415]
[1748987487139,10.95321984,155.23,155.22,2.55397415]
[1748987487335,6.4376,155.23,155.22,2.55397415]
[1748987487544,10.97322439,155.23,155.22,2.55397415]
[1748987487734,10.97322217,155.23,155.22,2.55397415]
[1748987487938,6.4393,155.19,155.14,10.04182081]
[1748987488245,0.04103345,155.18,155.16,11.55758004]
[1748987488435,11.55758004,155.24,155.16,6.4404]
[1748987488436,0.04524495,155.19,155.16,6.4404]
[1748987488636,0.04524495,155.19,155.14,13.60968004]
[1748987488930,6.44,155.18,155.15,6.4407]
[1748987489331,0.04524495,155.19,155.16,11.55758004]
[1748987489531,4.534386,155.18,155.16,11.55758004]
[1748987489733,6.48474495,155.19,155.16,11.55758004]
[1748987489945,6.48474495,155.19,155.16,17.99798004]
[1748987490443,6.4399,155.18,155.15,11.55758004]
[1748987491342,6.48484495,155.19,155.15,11.55758004]
[1748987491543,4.53208297,155.18,155.15,11.55758004]
[1748987491742,0.04524495,155.19,155.15,11.55758004]
[1748987491947,10.9719201,155.18,155.15,17.99838004]
[1748987492248,6.4399,155.18,155.15,17.99838004]
[1748987493147,6.48474495,155.19,155.16,6.4405]
[1748987493344,4.50709004,155.18,155.16,6.4405]
[1748987493550,0.04524495,155.19,155.16,6.4405]
[1748987494034,0.04524495,155.19,155.15,11.55758004]
[1748987494241,0.04524495,155.19,155.17,11.55758004]
[1748987494640,0.04524495,155.19,155.17,17.99738004]
[1748987495548,0.04524495,155.19,155.18,6.4397]
[1748987496046,0.04524495,155.19,155.17,11.55758004]
[1748987496251,0.04524495,155.19,155.17,17.99748004]
[1748987497846,0.04524495,155.19,155.18,6.4397]
[1748987499249,0.04524495,155.19,155.17,17.99758004]
[1748987502145,0.04524495,155.19,155.17,6.44]
[1748987505456,0.04524495,155.19,155.16,17.99798004]
[1748987505457,6.48464495,155.19,155.16,17.99798004]
[1748987508060,6.4397,155.18,155.16,11.55758004]
[1748987508361,6.4397,155.18,155.15,6.4408]
[1748987508362,0.04524495,155.19,155.15,11.55758004]